[Event "Czech Championship U20 Open 2023"]
[Site "Jaromerice nad Rokytnou"]
[Date "2023.03.16"]
[Round "9.2"]
[White "Kubiczek, Michal"]
[Black "Hrbek, Stepan"]
[Result "0-1"]
[ECO "A40"]
[WhiteElo "2087"]
[BlackElo "2340"]
[Annotator "TA"]
[PlyCount "150"]
[EventDate "2023.03.10"]
[EventType "tourn"]
[EventCountry "CZE"]
[SourceTitle "playchess.com"]
[Source "ChessBase"]
[SourceQuality "1"]
[TimeControl "40/5400+30:1800+30"]

{[%evp 15,150,16,10,-54,-32,-55,-44,-69,-58,-74,-66,-81,-90,-83,-76,-114,-129,-156,-163,-154,-147,-154,-162,-160,-150,-154,-155,-177,-160,-166,0,0,0,0,0,0,0,0,51,39,141,147,131,131,157,156,145,0,28,32,33,20,24,9,22,0,0,0,0,0,0,0,37,0,0,0,0,0,0,0,0,-11,-11,-11,-11,-29,-29,-29,-18,-37,-29,-94,-94,-186,-119,-464,-416,-1417,-1354,-1424,-1424,-1424,-1417,-1410,-1410,-1383,-450,-1410,-1208,-493,-221,-406,-399,-1397,-821,-12840,-12841,-12841,-12841,-12842,-12837,-12840,-12835,-12848,-12848,-12850,-12850,-12850,-27999,-27999,-27999,-27999,-27999,-27999,-27999,-27999,-27999,-27999,-27999,-27999,-27999,-27999,-27999,-27999,-27999,-27999,-27999]} 1. d4 {[%emt 0:00:15]} Nf6 {[%emt 0:00:30]} 2. c4 {[%emt 0:00:23]} e6 {[%emt 0:00:20][%cal Be7e6,Be6e5][%mdl 32]} 3. g3 {[%emt 0:00:19]} c5 {[%emt 0:00:19]} 4. Nf3 {[%emt 0:00:37]} cxd4 {[%emt 0:00:18]} 5. Nxd4 {[%emt 0:00:10]} d5 {[%emt 0:00:17]} 6. Bg2 {[%emt 0:04:45]} e5 {[%emt 0:00:32]} 7. Nf3 {[%emt 0:10:11]} d4 {[%emt 0:00:14]} 8. O-O {[%emt 0:04:31]} Nc6 {[%emt 0:00:19] [#]} 9. b4 {[%emt 0:09:48] E01: Catalan: Early deviations.} e4 $1 $15 {[%emt 0:23:19]} (9... Bxb4 10. Nxe5 Nxe5 11. Qa4+ Nc6 12. Bxc6+ bxc6 13. Qxb4 $11) 10. Ng5 {[%emt 0:04:26]} Bxb4 {[%emt 0:06:58]} 11. Nxe4 {[%emt 0:02:47] Black is slightly better.} Nxe4 {[%emt 0:00:20]} 12. Bxe4 {[%emt 0:00:03]} Bh3 {[%emt 0:01:00]} 13. Bg2 {[%emt 0:01:12] White is weak on the dark squares} Bxg2 {[%emt 0:00:31]} 14. Kxg2 {[%emt 0:00:03]} O-O {[%emt 0:00:15]} 15. Bb2 {[%emt 0:04:43]} Qe7 {[%emt 0:03:20] White must now prevent ...Rfe8.} 16. a3 {[%emt 0:02:23]} Ba5 {[%emt 0:01:52]} (16... Qe4+ $2 17. f3 Qe6 18. axb4 $18) 17. Nd2 {[%emt 0:05:08]} Rfe8 {[%emt 0:02:51] Black is much more active.} 18. Nb3 {[%emt 0:04:25]} Rad8 {[%emt 0:14:25]} ({Worse is} 18... Qxe2 19. Qxe2 Rxe2 20. Bxd4 $15) (18... Bc3 19. Bxc3 dxc3 20. Qd3 $15) 19. Nxa5 {[%emt 0:09:55]} Nxa5 {[%emt 0:02:54]} 20. Qa4 {[%emt 0:01:43] [#]} Nc6 $146 {[%emt 0:07:42]} (20... Qxe2 $2 21. Rae1 Qxe1 22. Rxe1 Rxe1 23. Qxa5 $18) ({Predecessor:} 20... Qe4+ 21. f3 Qxe2+ 22. Rf2 Qe5 23. Rd1 Nc6 24. Qb5 Qe7 25. Rfd2 Rd7 26. Bxd4 Red8 27. Qb2 Nxd4 28. Rxd4 Qf6 {0-1 Komissarov,A (2316)-Tarasov,A (2311) Moscow Botvinnik Memorial-A 2015 (1)}) 21. Rfe1 {[%emt 0:05:34]} Qe4+ $1 {[%emt 0:00:27]} 22. Kg1 {[%emt 0:06:36]} d3 $2 {[%emt 0:01:36]} (22... h5 $1 $19 23. Rad1 h4) 23. exd3 $11 {[%emt 0:01:29]} Qxe1+ {[%emt 0:01:01]} 24. Rxe1 {[%emt 0:00:01]} Rxe1+ {[%emt 0:00:08]} 25. Kg2 {[%emt 0:00:03][%cal Od3d4]} Rxd3 {[%emt 0:12:37]} 26. Qc2 {[%emt 0:00:51]} Red1 {[%emt 0:00:57]} (26... Rdd1 $11) 27. Qe2 $14 {[%emt 0:00:32][%cal Re2e8][%mdl 1024] White has compensation.} Rd8 {[%emt 0:00:52] Against Qe8+} (27... Kf8 $1 $14) 28. Qg4 $16 {[%emt 0:01:00][%csl Gb2][%cal Rg4g7]} g6 {[%emt 0:00:15]} 29. Bf6 {[%emt 0:02:16] Inhibits R1d2.} R8d3 {[%emt 0:04:53]} 30. Qe2 {[%emt 0:00:52][%cal Re2e8]} Kf8 {[%emt 0:00:11] [#] Inhibits Qe8+.} 31. Qg4 {[%emt 0:05:40]} ({White should play} 31. Bg5 $1 $16 {[%cal Rg5h6] Intending Bh6+ and mate.} Kg8 32. Bf6) 31... Ke8 {[%emt 0:05:02]} 32. Qc8+ {[%emt 0:02:45]} Nd8 {[%emt 0:00:01]} 33. Qc7 {[%emt 0:01:45][%csl Gf6][%cal Rc7e7]} Re1 {[%emt 0:00:44] Against Qe7+} 34. c5 {[%emt 0:02:18]} h5 {[%emt 0:05:08]} 35. a4 {[%emt 0:02:26]} Rd7 {[%emt 0:00:25] The board is on fire.} 36. Qb8 {[%emt 0:02:08][%cal Oa4a5]} Re6 {[%emt 0:00:20] Prevents a5.} 37. Bxd8 {[%emt 0:03:13]} Rxd8 {[%emt 0:00:02]} 38. Qxb7 $11 {[%emt 0:00:07][%cal Oc5c6][%mdl 4096] Endgame KQ-KRR} Re7 {[%emt 0:03:41] Prevents c6} 39. Qb5+ {[%emt 0:00:45]} Kf8 {[%emt 0:00:34]} 40. c6 {[%emt 0:01:01]} Kg8 {[%emt 0:02:13]} 41. Qg5 {[%emt 0:31:03]} Rde8 {[%emt 0:01:41]} 42. Qc5 {[%emt 0:00:00] c7 would be deadly.} Rc7 {[%emt 0:00:18]} 43. Qa5 {[%emt 0:00:00]} Rxc6 {[%emt 0:01:03]} 44. Qxa7 {[%emt 0:00:00]} Rcc8 {[%emt 0:01:26]} 45. Qb7 {[%emt 0:00:00]} Ra8 {[%emt 0:00:29]} 46. Qc6 {[%emt 0:00:00]} Red8 {[%emt 0:00:25]} 47. Kf3 {[%emt 0:00:00]} Ra5 {[%emt 0:00:56]} 48. h4 {[%emt 0:00:00]} (48. h3 $11) 48... Rda8 $17 {[%emt 0:00:37]} 49. g4 {[%emt 0:00:00]} (49. Kg2 $17) 49... R5a6 {[%emt 0:04:10]} ({Not} 49... Rxa4 50. gxh5 gxh5 51. Kg2 $15) (49... hxg4+ $19 50. Kxg4 Rxa4+ 51. Kg3 R4a6) 50. Qd7 $2 {[%emt 0:00:00][%mdl 8192]} (50. Qc1 $17 {is a better chance.}) 50... hxg4+ $19 {[%emt 0:00:18]} ({Stronger than} 50... Rxa4 51. gxh5 gxh5 52. Qc7 $15) 51. Kxg4 {[%emt 0:00:00]} (51. Kg3 $142 Rxa4 52. Qd6) 51... Rxa4+ {[%emt 0:00:09]} 52. f4 {[%emt 0:00:00]} R4a5 {[%emt 0:00:12]} 53. Qc6 {[%emt 0:00:00]} Rf8 {[%emt 0:01:14]} 54. Qc7 {[%emt 0:00:23]} Rf5 {[%emt 0:00:20]} 55. Qd7 {[%emt 0:00:17]} Rb8 {[%emt 0:01:20]} (55... Ra8 $142 56. Kf3 Ra3+ 57. Ke4 Ra1 58. Qc8+ Kh7) 56. Qe7 {[%emt 0:00:44]} (56. Qd4 $142 Rb1 57. Qc4) 56... Rc8 {[%emt 0:00:29] Strongly threatening ...Rc4.} 57. Qe4 {[%emt 0:00:23] Repels Rc4} Rd8 {[%emt 0:00:32]} (57... Rc1 $142 {Threatens to win with ...Rf1.} 58. Qe2 Rcc5) 58. Qa4 $2 {[%emt 0:00:09]} (58. Qc4 {was necessary.}) 58... Rd6 {[%emt 0:01:06] And now ...Rdf6 would win.} 59. Qe8+ $2 {[%emt 0:00:37] [#]} (59. Kg3) 59... Kg7 $1 {[%emt 0:00:10] Hoping for ...Rd4.} 60. Qe2 {[%emt 0:00:34]} Rdf6 {[%emt 0:01:34]} 61. Kg3 {[%emt 0:04:33]} Rxf4 {[%emt 0:01:57]} 62. Qe5 {[%emt 0:00:31]} R4f5 {[%emt 0:00:31]} 63. Qa1 {[%emt 0:00:15]} Kh7 {[%emt 0:00:20]} 64. Kg4 {[%emt 0:01:43]} Rf3 {[%emt 0:00:41]} 65. Qc1 {[%emt 0:02:08] [#]} R6f4+ $1 {[%emt 0:00:46][%mdl 64] Skewer} 66. Qxf4 {[%emt 0:00:14]} Rxf4+ {[%emt 0:00:10]} 67. Kxf4 {[%emt 0:00:02] KPP-KP. Black mates.} Kh6 {[%emt 0:00:13]} 68. Kg3 {[%emt 0:00:14]} Kh5 {[%emt 0:00:11]} 69. Kh3 {[%emt 0:00:04]} f6 {[%emt 0:00:12][%cal Bf7f6,Bf6f5,Bf5f4,Bf4f3][%mdl 32]} 70. Kg3 {[%emt 0:00:04]} f5 {[%emt 0:00:07]} 71. Kh3 {[%emt 0:02:04]} f4 {[%emt 0:00:24]} 72. Kg2 {[%emt 0:00:19]} Kxh4 {[%emt 0:00:09]} 73. Kf3 {[%emt 0:00:10]} g5 {[%emt 0:00:09]} 74. Ke4 {[%emt 0:01:00]} Kg3 {[%emt 0:00:22]} 75. Kd4 {[%emt 0:00:06]} f3 {[%emt 0:00:09] Both players deserved the win here.   Weighted Error Value: White=0.64/Black=0.33} 0-1

[Event "Czech Championship U20 Open 2023"]
[Site "Jaromerice nad Rokytnou"]
[Date "2023.03.16"]
[Round "9.3"]
[White "Frank, Adam"]
[Black "Ocelak, Jakub"]
[Result "1-0"]
[ECO "C65"]
[WhiteElo "2391"]
[BlackElo "2190"]
[Annotator "TA"]
[PlyCount "117"]
[EventDate "2023.03.10"]
[EventType "tourn"]
[EventCountry "CZE"]
[SourceTitle "playchess.com"]
[Source "ChessBase"]
[SourceQuality "1"]
[TimeControl "40/5400+30:1800+30"]

{[%evp 9,117,11,21,17,9,14,7,0,0,-9,8,2,6,0,29,25,27,16,29,31,65,55,108,105,86,91,116,116,116,121,111,111,113,62,83,25,20,29,72,76,72,66,118,0,0,0,0,0,61,61,60,53,110,83,110,108,127,77,129,118,134,117,120,126,125,119,110,71,126,13,19,0,243,209,260,270,262,243,337,322,317,310,360,318,616,601,687,667,679,571,644,612,688,643,668,640,617,606,775,773,802,802,756,741,1381,1347,1214,1135,2373,2257]} 1. e4 {[%emt 0:00:05]} e5 {[%emt 0:01:11]} 2. Nf3 {[%emt 0:00:04]} Nc6 {[%emt 0:00:07]} 3. Bb5 {[%emt 0:00:05]} Nf6 {[%emt 0:00:07]} 4. d3 {[%emt 0:00:02]} Bc5 {[%emt 0:00:07]} 5. c3 {[%emt 0:00:04]} d5 {[%emt 0:08:25]} 6. exd5 {[%emt 0:00:05] C65: Ruy Lopez: Berlin Defence (3...Nf6), unusual lines and 4 0-0 Bc5.} Qxd5 {[%emt 0:00:07][%cal Oc5f2]} 7. Bc4 {[%emt 0:00:03]} Qd6 {[%emt 0:01:43]} 8. Nbd2 {[%emt 0:00:20] The position is equal.} (8. b4 $5 Bb6 $8 9. O-O $11) 8... Bf5 {[%emt 0:04:48]} 9. Ng5 {[%emt 0:00:53]} O-O {[%emt 0:06:05]} (9... Bxd3 {seems wilder.} 10. Bxf7+ Ke7 11. Nc4 Bxc4 12. Qxd6+ cxd6 13. Bxc4 d5) 10. b4 {[%emt 0:01:10][%cal Bb2b4,Bb4b5][%mdl 32]} Bb6 {[%emt 0:03:52]} 11. Nde4 {[%emt 0:00:11]} Bxe4 {[%emt 0:14:00]} 12. Nxe4 {[%emt 0:03:28]} Nxe4 {[%emt 0:02:11]} 13. dxe4 {[%emt 0:00:04]} Qxd1+ {[%emt 0:08:39]} 14. Kxd1 {[%emt 0:00:04] [#]} a5 $146 {[%emt 0:01:24]} ({Predecessor:} 14... Bxf2 15. g3 Ne7 16. a4 a5 17. Ke2 Bb6 18. Bg5 Nc8 19. b5 h6 20. Bc1 Nd6 {1-0 Daggupati,B (2488)-Espinosa,P (2130) USA-ch U20 Saint Louis 2022 (1)}) 15. b5 {[%emt 0:01:02]} Ne7 {[%emt 0:04:37]} (15... Nd8 $14) 16. Ba3 $16 {[%emt 0:05:04]} Rfd8+ {[%emt 0:01:01]} 17. Ke2 {[%emt 0:02:23]} Nc8 {[%emt 0:01:37]} 18. Bd5 {[%emt 0:04:48]} Rb8 {[%emt 0:03:38] Black is weak on the light squares} 19. Rhd1 {[%emt 0:02:01][%cal Od5f7]} Nd6 {[%emt 0:04:10]} 20. Rab1 {[%emt 0:00:04]} g6 {[%emt 0:03:01]} 21. Rf1 {[%emt 0:20:12]} (21. Rd3 $16) 21... Kg7 {[%emt 0:02:45]} 22. f4 {[%emt 0:00:39]} (22. g4 $16) 22... exf4 $11 {[%emt 0:07:17]} 23. Rxf4 {[%emt 0:00:06]} f5 {[%emt 0:02:30]} 24. c4 $1 {[%emt 0:10:57] Threatens to win with c5.} Bd4 {[%emt 0:03:23]} 25. exf5 {[%emt 0:00:03]} Nxf5 {[%emt 0:02:24] [#]} (25... Be5 $1 $14 26. Bxd6 Rxd6) 26. g4 {[%emt 0:00:06]} (26. Kd3 $1 $16 {Hoping for g4.} Bf6 27. g4) 26... Re8+ {[%emt 0:00:13]} 27. Re4 {[%emt 0:00:03]} Rxe4+ {[%emt 0:04:19]} 28. Bxe4 {[%emt 0:00:02]} Nd6 {[%emt 0:00:11]} (28... Ne3 $1 $11) 29. Bd5 $14 {[%emt 0:00:03]} b6 {[%emt 0:03:04]} 30. Bc1 {[%emt 0:04:37]} Rf8 {[%emt 0:00:52]} (30... Bf6 $14) 31. Kd3 $16 {[%emt 0:00:38]} Be5 {[%emt 0:02:28][%cal Of8f2]} 32. Be3 {[%emt 0:00:03] Against Rf2} h6 {[%emt 0:01:23]} 33. h3 {[%emt 0:00:16]} (33. Re1 $142) 33... Rd8 {[%emt 0:02:49]} ({Black should try} 33... a4) 34. a4 {[%emt 0:00:16]} Bf6 {[%emt 0:00:43]} 35. Bf4 {[%emt 0:00:05]} Rd7 {[%emt 0:01:08]} 36. Re1 {[%emt 0:05:37]} Nb7 {[%emt 0:00:53] [#]} 37. Be3 $1 {[%emt 0:01:06] White has more active pieces.} Nd6 {[%emt 0:00:42]} 38. Rf1 {[%emt 0:02:48]} Be5 {[%emt 0:00:53]} ({Black should play} 38... Nf7) 39. c5 {[%emt 0:00:01]} ({Better is} 39. h4 $16) 39... bxc5 $1 $11 {[%emt 0:00:29][%cal Oc5c4]} (39... Nxb5 $2 40. axb5 Rxd5+ 41. Ke4 $18) 40. Bxc5 {[%emt 0:02:43]} Re7 $2 {[%emt 0:00:40] Black is on the road to losing.} (40... Nxb5 $1 $11 41. Bf8+ Kh7) 41. Bc6 {[%emt 0:36:35]} Re6 {[%emt 0:07:25]} 42. Re1 {[%emt 0:00:00][%cal Oe1e5]} Kf6 {[%emt 0:02:01]} 43. Be3 {[%emt 0:00:00] A strong pair of Bishops.} Nc8 {[%emt 0:05:04]} 44. Bxh6 {[%emt 0:00:00]} Rd6+ {[%emt 0:03:53]} 45. Kc2 {[%emt 0:00:00]} Nb6 {[%emt 0:00:50]} 46. Re4 {[%emt 0:00:00]} Re6 $2 {[%emt 0:06:50]} (46... g5 47. Bxg5+ Kxg5) 47. Bd2 $18 {[%emt 0:00:00] White is clearly winning.} Bd6 {[%emt 0:03:20]} 48. Bc3+ {[%emt 0:00:00]} ({Weaker is} 48. Bxa5 Rxe4 49. Bxe4 Nxa4 $18) 48... Ke7 {[%emt 0:00:21]} 49. Kb3 {[%emt 0:00:00]} Rxe4 {[%emt 0:01:01]} 50. Bxe4 {[%emt 0:00:00][%mdl 4096] Endgame KBB-KBN} Nd7 {[%emt 0:00:21]} 51. Bxg6 {[%emt 0:00:00]} Nc5+ {[%emt 0:00:02]} 52. Kc4 {[%emt 0:00:00]} Nxa4 {[%emt 0:00:09]} 53. Bxa5 {[%emt 0:00:00]} Kf6 {[%emt 0:00:16]} 54. Bf5 {[%emt 0:00:00]} Ke5 {[%emt 0:02:00]} 55. Be1 {[%emt 0:00:00] And now Bg3+ would win.} Nb6+ {[%emt 0:00:17]} 56. Kd3 {[%emt 0:00:00] Strongly threatening Bg3+.} Kf4 {[%emt 0:01:11] Wards off Bg3+} 57. h4 {[%emt 0:00:00][%cal Bh3h4,Bh4h5][%mdl 32]} Nd5 {[%emt 0:01:38]} 58. h5 {[%emt 0:00:00]} Be5 {[%emt 0:01:35]} 59. Bd2+ {[%emt 0:00:00] Weighted Error Value: White=0.15 (very precise) /Black=0.38} 1-0

[Event "Czech Championship U20 Open 2023"]
[Site "Jaromerice nad Rokytnou"]
[Date "2023.03.16"]
[Round "9.4"]
[White "Mica, Marek"]
[Black "Mach, Petr"]
[Result "1-0"]
[ECO "B06"]
[WhiteElo "2248"]
[BlackElo "2167"]
[Annotator "TA"]
[PlyCount "65"]
[EventDate "2023.03.10"]
[EventType "tourn"]
[EventCountry "CZE"]
[SourceTitle "playchess.com"]
[Source "ChessBase"]
[SourceQuality "1"]
[TimeControl "40/5400+30:1800+30"]

{[%evp 9,65,40,45,27,62,62,180,74,65,52,41,29,34,49,112,94,83,86,91,72,74,37,73,46,40,-43,18,16,11,-12,-15,-24,75,0,0,0,158,160,150,143,134,79,87,75,92,79,85,109,342,342,329,322,337,341,375,363,396,389]} 1. d4 {[%emt 0:00:03]} g6 {[%emt 0:00:12]} 2. e4 {[%emt 0:00:45]} Bg7 {[%emt 0:00:11]} 3. Be3 {[%emt 0:00:45]} c5 {[%emt 0:00:59]} 4. c3 {[%emt 0:01:02][%cal Bc2c3,Bc3d4,Bd4d5][%mdl 32]} Qb6 {[%emt 0:00:19]} 5. Qd2 {[%emt 0:05:55]} d6 {[%emt 0:02:32]} 6. Na3 {[%emt 0:00:56] B06: Modern Defence.} cxd4 {[%emt 0:00:40] [#]} 7. cxd4 $146 {[%emt 0:04:44]} (7. Bxd4 Bxd4 8. cxd4 Nf6 $11) ({Predecessor:} 7. Bxd4 Bxd4 8. cxd4 Nf6 9. Bb5+ Bd7 10. Bxd7+ Nbxd7 11. f3 Rc8 12. Ne2 O-O 13. O-O Rc7 14. Rfc1 Rfc8 15. Rxc7 Rxc7 16. Rc1 a6 17. Rxc7 Qxc7 18. Qc3 {½-½ Szilagyi,G-Horvath,P (2100) HUN-chT2 Barcza 0203 2002 (5)}) 7... Nc6 {[%emt 0:05:37]} (7... d5 $14) 8. Bb5 {[%emt 0:04:11]} (8. Nb5 $1 $18 {and the rest is easy.}) 8... Bd7 $16 {[%emt 0:06:58]} 9. d5 {[%emt 0:18:00]} Qa5 {[%emt 0:00:04]} (9... Nd4 $2 10. Bxd7+ Kxd7 11. Rd1 $18) 10. Qxa5 {[%emt 0:01:28]} Nxa5 {[%emt 0:00:06]} 11. Rb1 {[%emt 0:02:54] Black is weak on the light squares} b6 {[%emt 0:09:14]} (11... Bxb5 $1 $14 12. Nxb5 Rc8) 12. Ba6 {[%emt 0:06:07] Strongly threatening b4.} Bc8 {[%emt 0:02:06]} 13. Bd3 {[%emt 0:00:11]} Nf6 {[%emt 0:01:04]} 14. f3 {[%emt 0:01:02]} O-O {[%emt 0:00:21]} 15. Ne2 {[%emt 0:05:32]} (15. b4 $5 {[%cal Rb4a5]} Nb7 16. Nb5 $14) 15... Nb7 {[%emt 0:00:33]} 16. b4 {[%emt 0:03:38] White is more active.} a5 {[%emt 0:01:00]} 17. bxa5 {[%emt 0:01:57]} (17. Bxb6 axb4 18. Nc2 Nc5 19. Nxb4 Nxd3+ 20. Nxd3 Ba6 $15) (17. b5 $14) 17... Rxa5 {[%emt 0:00:49]} (17... Nc5 $15 18. Bb5 (18. Bxc5 bxc5 19. Nc4 Nd7 $11) 18... Rxa5) 18. Nc4 $11 {[%emt 0:01:39]} Rxa2 {[%emt 0:00:17]} 19. Nc1 {[%emt 0:05:08]} Rxg2 {[%emt 0:12:04]} 20. Nd2 {[%emt 0:01:29] [#]} Bg4 {[%emt 0:13:46]} 21. h3 {[%emt 0:13:39]} ({White should try} 21. fxg4 $16 {Hoping for h3.} Nxg4 22. Bxb6) 21... Bc8 {[%emt 0:11:25]} 22. Bf1 {[%emt 0:02:34]} Rg3 {[%emt 0:00:05]} (22... Rxd2 $1 $11 23. Kxd2 Nd7) 23. Kf2 $1 $16 {[%emt 0:06:16]} Nh5 {[%emt 0:00:14]} 24. Ne2 $36 {[%emt 0:00:43][%mdl 2048] White is really pushing.} f5 {[%emt 0:04:14][%cal Of5f4]} (24... Be5 $2 25. Nc4 (25. Rxb6 f5 $16) 25... f5 26. Nxe5 $18 (26. Bxb6 fxe4 27. Nxe5 dxe5 $17)) 25. exf5 {[%emt 0:02:23]} (25. Rxb6 $142 {exf5 is the strong threat.} Bf6 26. Nxg3) 25... Be5 {[%emt 0:00:39][%cal Ob7c5]} 26. Rxb6 {[%emt 0:05:30] Bh6 would be deadly.} Nc5 {[%emt 0:01:43] [#]} 27. Bxc5 {[%emt 0:01:00][%mdl 64] Remove Defender} dxc5 {[%emt 0:00:04] [#]} 28. Ne4 {[%emt 0:00:58] Prevents Rg5.} c4 $2 {[%emt 0:02:42] Black cannot hold the game after this.} 29. Rc6 $18 {[%emt 0:01:30]} ({Not} 29. N2xg3 Bd4+ 30. Kg2 Nf4+ 31. Kh2 Bxb6 32. Bxc4 gxf5 33. d6+ e6 $11) (29. N4xg3 Nxg3 30. Nxg3 Bd4+ 31. Kg2 Bxb6 $11) 29... Rxf3+ {[%emt 0:02:26]} 30. Kxf3 {[%emt 0:00:08][%cal Bf2f3,Bf3e3,Be3d4][%mdl 32]} Bxf5 {[%emt 0:00:05]} 31. Ke3 {[%emt 0:00:58]} ({Worse is} 31. Rxc4 Bxh3+ 32. Ke3 Bxf1 $15) 31... Bg7 {[%emt 0:01:27]} 32. Bg2 {[%emt 0:01:19]} ({Much less strong is} 32. Rxc4 Bh6+ 33. Kd4 Bg7+ 34. Kd3 Ra8 $18) 32... Bh6+ {[%emt 0:00:19]} 33. Kd4 {[%emt 0:00:15] Weighted Error Value: White=0.20 (precise) /Black=0.37} 1-0